Cogmind - Beta 17 @@@ ROGUE MODE // 2026.08.14 @ 15:46:07 Player: LandRaider Result: Destroyed by Explosive Trap Performance ------------- Evolutions (0) 0 Regions Visited (2) 400 Robots Destroyed (15) 75 Value Destroyed (366) 366 Prototype IDs (0) 0 Alien Tech Used (0) 0 Bonus (0) 0 TOTAL SCORE: 841 Bonus ------- None Cogmind --------- Core Integrity 0/250 Matter 260/300 Energy 249/250 System Corruption 0% Temperature Cool (0) Movement Rolling (115) Ox1 Location -10/Mines Parts ------- > --- POWER (1) -------- Ion Engine > --- PROPULSION (2) --- Light Treads Compact Wheel > --- UTILITY (2) ------ Large Storage Unit Power Shielding > --- WEAPON (2) ------- Light Assault Rifle Enhanced Flamer > --- INVENTORY (15) --- Light Ion Engine Light Treads Aluminum Leg Aluminum Leg Cesium-ion Thruster Medium Storage Unit Structural Scanner Improved Trap Extractor (0/6) Particle Gun Pulse Rifle EM Pulse Cannon Datajack Heavy Flail Peak State ------------ > --- POWER ------------ Ion Engine > --- PROPULSION ------- Light Treads Compact Wheel > --- UTILITY ---------- Large Storage Unit Power Shielding > --- WEAPON ----------- Light Assault Rifle Enhanced Flamer > --- INVENTORY -------- Light Ion Engine Light Treads Aluminum Leg Aluminum Leg Medium Storage Unit Structural Scanner Improved Trap Extractor Particle Gun Pulse Rifle EM Pulse Cannon Datajack Heavy Flail [Rating: 11] Favorites ----------- Power Ion Engine Engine Ion Engine Propulsion Compact Wheel Treads Light Treads Leg Aluminum Leg Wheel Compact Wheel Utility Medium Storage Unit Storage Medium Storage Unit Protection Power Shielding Weapon Light Assault Rifle Energy Gun EM Pulse Gun Ballistic Gun Light Assault Rifle Special Weapon Enhanced Flamer Build | -11 -10 -10 ------- Run | Yrd Mat Min Slots Evolved . | . . . Power . | . . . Propulsion . | . . . Utility . | . . . Weapon . | . . . Parts Attached 22 | 6 7 9 Power 4 | 1 1 2 Engine 4 | 1 1 2 Core . | . . . Reactor . | . . . Propulsion 7 | 2 1 4 Treads 1 | . . 1 Leg 1 | . 1 . Wheel 5 | 2 . 3 Hover . | . . . Flight . | . . . Utility 4 | 1 2 1 Device . | . . . Storage 3 | 1 1 1 Processor . | . . . Hackware . | . . . Protection 1 | . 1 . Artifact . | . . . Weapon 7 | 2 3 2 Energy Gun 2 | 1 1 . Energy Cannon . | . . . Ballistic Gun 4 | 1 2 1 Ballistic Cannon . | . . . Launcher . | . . . Special Weapon 1 | . . 1 Impact Weapon . | . . . Slashing Weapon . | . . . Piercing Weapon . | . . . Special Melee Weapon . | . . . Unidentified Prototypes . | . . . Parts Lost 7 | . 6 1 Power 1 | . 1 . Propulsion 3 | . 2 1 Utility . | . . . Weapon 3 | . 3 . Highest Loss Streak 6 | . 6 1 To Critical Strikes . | . . . Average Backups 8 | 2 7 9 Power 1 | . 1 1 Propulsion 3 | 2 4 3 Utility 1 | . . 2 Weapon . | . . 1 Tool/Special . | . . . Unused Backups 9 | . . 9 Power 1 | . . 1 Propulsion 3 | . . 3 Utility 3 | . . 3 Weapon 1 | . . 1 Tool/Special 1 | . . 1 Average Slot Usage (%) 81 | . 75 89 Engine 12 | . 12 14 Leg 5 | . 7 2 Wheel 11 | . 9 14 Storage 15 | . 15 14 Protection 8 | . 2 14 Energy Gun 2 | . 5 . Ballistic Gun 22 | . 21 23 Special Weapon 2 | . . 4 Peak Build Rating 11 | 6 7 11 Average Rating 6 | 4 5 7 On Entrance 4 | . 6 7 Avg Prop Armor Cover (%) 13 | . . 13 Naked Turns . | . . . Heaviest Build 29 | 12 22 29 Greatest Support 32 | 20 20 32 Greatest Overweight (x) 2 | . 2 1 Average Overweight (x) . | . . . Largest Inventory Capacity 15 | 8 10 15 Average Capacity 9 | 6 8 10 Most Carried 13 | 6 10 13 Average Carried 8 | 3 7 10 Final Capacity 15 | 8 10 15 Final Carried 13 | 6 10 13 Class Distribution -------------------- 38% | Mutant 35% | Scavenger-Mutant 26% | Derelict-Mutant Dominant Class ---------------- Scavenger-Mutant | -10/Materials Derelict-Mutant | -10/Mines Resources | -11 -10 -10 ----------- Run | Yrd Mat Min Matter Collected 449 | 228 118 103 Remotely . | . . . Salvage Created 449 | 15 301 133 Parts 40 | 3 26 11 Haulers Intercepted . | . . . Recyclers Shooed . | . . . Parts Field Recycled . | . . . Retrieved Matter . | . . . Parts Self-Destructed . | . . . Prevented . | . . . Parts Restored . | . . . Kills | -11 -10 -10 ------- Run | Yrd Mat Min Combat Hostiles Destroyed 12 | . 7 5 Guns 12 | . 7 5 Classes Destroyed 4 | 1 3 . Tunneler 1 | 1 . . Watcher 2 | . 2 . Swarmer 5 | . 2 3 Grunt 7 | . 5 2 Best Kill Streak 5 | 1 5 3 Combat Bots Only 5 | . 5 3 Max Kills in Single Turn 1 | 1 1 1 Gunslinging . | . . . Exploded . | . . . Melee . | . . . Uniques/NPCs Destroyed . | . . . Combat | -11 -10 -10 -------- Run | Yrd Mat Min Hostile Shots Fired 101 | . 69 32 Missed 27 | . 17 10 Hits 74 | . 52 22 Projectile 74 | . 52 22 Critical Strikes 1 | . . 1 Actively Blocked 1 | . . 1 Damage Taken 900 | . 617 283 Core 253 | . 159 94 Absorbed by Shields . | . . . Redirected to Shielding 20 | . . 20 Core Remaining (%) 100 | 100 . . Volleys Fired 52 | 1 33 18 Largest 2 | 2 2 2 Hottest 60 | 60 60 40 Shots Fired 89 | 2 51 36 Gun 89 | 2 51 36 Cannon . | . . . Launcher . | . . . Special . | . . . Kinetic 66 | 1 29 36 Thermal . | . . . Explosive . | . . . Electromagnetic 23 | 1 22 . Robot Hit Streak 8 | 1 4 8 Robot Miss Streak 4 | . 3 4 Penetration Max . | . . . Secondary Targets 3 | . 2 1 Max Gunslinging Chain 1 | . 1 1 Shots Hit Robots 54 | 1 31 22 Core Hits 26 | 1 16 9 Critical Kills . | . . . Critical Parts Destroyed . | . . . Critical Strikes . | . . . Melee Attacks . | . . . Impact . | . . . Slashing . | . . . Piercing . | . . . Sneak Attacks . | . . . Combat Hostiles . | . . . Follow-up Attacks . | . . . Damage Inflicted 585 | 13 370 202 Guns 585 | 13 370 202 Cannons . | . . . Explosions . | . . . Melee . | . . . Ramming . | . . . Kinetic 407 | . 205 202 Thermal . | . . . Explosive . | . . . Electromagnetic 178 | 13 165 . Impact . | . . . Slashing . | . . . Piercing . | . . . Highest Corruption . | . . . Average Corruption . | . . . Corruption Purged . | . . . Corruption Blocked . | . . . Overload Shots . | . . . Overflow Damage . | . . . Projectiles . | . . . Explosions . | . . . Melee . | . . . Knockbacks . | . . . Impact . | . . . Kinetic . | . . . Secondary . | . . . Self-Inflicted Damage . | . . . Shots . | . . . Rammed . | . . . Targets Rammed . | . . . Kicked . | . . . Crushed . | . . . Highest Temperature 35 | . 35 18 Average Temperature 13 | . 13 12 Received Heat Transfer 387 | . 285 102 Siege Activations . | . . . Martial Activations . | . . . Shielding Activations . | . . . Robots Disrupted . | . . . Combat Hostiles . | . . . Robots Corrupted . | . . . Combat Hostiles . | . . . Parts Fried . | . . . Impact Corruptions . | . . . Robots Melted . | . . . Combat Hostiles . | . . . Parts Melted . | . . . Heat Transferred . | . . . Parts Sabotaged . | . . . Parts Stolen . | . . . Parts Stripped . | . . . Power Chain Reactions . | . . . Alert | -11 -10 -10 ------- Run | Yrd Mat Min Maximum Alert Level . | . . . Low Security (%) 100 | 100 100 100 Level 1 . | . . . Level 2 . | . . . Level 3 . | . . . Level 4 . | . . . Level 5 . | . . . High Security . | . . . Max Security . | . . . Peak Influence 109 | 5 109 72 Initial 12 | . . 12 Average 43 | . 60 29 Influence Increases 386 | 5 261 120 Destroy 0b10 Robot/C 240 | . 140 100 Destroy 0b10 Robot/NC 15 | 5 10 . Destroy Leader 54 | . 34 20 Successful Hack 2 | . 2 . Select Force Hacks 30 | . 30 . Partial Spotted 45 | . 45 . Influence Decreases 386 | 5 230 151 Entered New Map 19 | . . 19 Time Decay 297 | 5 170 122 Lost Part 70 | . 60 10 Squads Dispatched 2 | . 2 . Investigation 1 | . 1 . Extermination . | . . . Reinforcement 1 | . 1 . Assault . | . . . Garrison . | . . . Intercept . | . . . Searches Triggered . | . . . Construction Impeded . | . . . Haulers Reinforced . | . . . Active Scanning Responses . | . . . Cargo Convoy Interrupts . | . . . Stealth | -11 -10 -10 --------- Run | Yrd Mat Min Distress Signals . | . . . Communications Jammed . | . . . Distress Signals . | . . . Times Spotted 18 | . 13 5 Peak Tracking Total 6 | . 6 3 Tactical Retreats . | . . . Traps | -11 -10 -10 ------- Run | Yrd Mat Min Traps Triggered 1 | . . 1 Indirectly . | . . . Trap Hack Attempts . | . . . Triggered . | . . . Disarmed . | . . . Reprogrammed . | . . . Reused . | . . . Traps Extracted . | . . . Installed . | . . . Triggered . | . . . Machines | -11 -10 -10 ---------- Run | Yrd Mat Min Machines Disabled . | . . . Max in Single Turn . | . . . Machines Repaired . | . . . Machines Dismantled . | . . . Machines Sabotaged . | . . . Overloaded Fab Kills . | . . . Hacking | -11 -10 -10 --------- Run | Yrd Mat Min Machines Accessed 3 | . 2 1 Terminals 1 | . 1 . Fabricators . | . . . Repair Stations . | . . . Recycling Units 1 | . 1 . Scanalyzers . | . . . Garrison Access . | . . . Total Hacks 7 | . 6 1 Successful 4 | . 3 1 Failed 3 | . 3 . Catastrophic . | . . . Database Lockouts . | . . . Manual 5 | . 5 . Terminals 3 | . 3 . Fabricators . | . . . Repair Stations . | . . . Recycling Units 3 | . 3 . Scanalyzers . | . . . Garrison Access . | . . . Terminal Hacks 2 | . 1 1 Record 1 | . 1 . Open Door 1 | . . 1 Fabricator Hacks . | . . . Repair Station Hacks . | . . . Recycling Unit Hacks . | . . . Scanalyzer . | . . . Garrison Access Hacks . | . . . Unauthorized Hacks 1 | . 1 . Terminals . | . . . Fabricators . | . . . Repair Stations . | . . . Recycling Units 1 | . 1 . Tunnel 1 | . 1 . Scanalyzers . | . . . Garrison Access . | . . . Data Cores Recovered . | . . . Used . | . . . Hacking Detections 1 | . 1 . Full Trace Events . | . . . Feedback Events . | . . . Feedback Blocked . | . . . Robot Schematics Acquired . | . . . Robots Built . | . . . Authchips . | . . . Time . | . . . Total Robot Build Rating . | . . . Part Schematics Acquired . | . . . Parts Built . | . . . Authchips . | . . . Time . | . . . Total Part Build Rating . | . . . Part Studies Acquired . | . . . Parts Repaired . | . . . Time . | . . . Parts Recycled . | . . . Recycled Matter . | . . . Retrieved Matter . | . . . Retrieved Components . | . . . Parts Scanalyzed . | . . . Part Schematics Acquired . | . . . Parts Damaged . | . . . Bothacking | -11 -10 -10 ------------ Run | Yrd Mat Min Used RIF Installer . | . . . Robots Hacked . | . . . Non-combat . | . . . Combat . | . . . Robot Hacks Applied . | . . . Relay Couplers Released . | . . . Fabnet Peak Effective % . | . . . Robots Rewired . | . . . Allies Hacked . | . . . Hacks Repelled . | . . . Allies | -11 -10 -10 -------- Run | Yrd Mat Min Total Allies . | . . . Largest Group . | . . . Highest-Rated Group . | . . . Highest-Rated Ally . | . . . Total Orders . | . . . Ally Attacks . | . . . Total Damage . | . . . Kills . | . . . Allies Corrupted . | . . . Allies Melted . | . . . Intel | -11 -10 -10 ------- Run | Yrd Mat Min Active Infowar (turns) . | . . . Robot Analysis Total . | . . . Derelict Logs Recovered 1 | . . 1 Drone Launches . | . . . Drone Recoveries . | . . . Exploration | -11 -10 -10 ------------- Run | Yrd Mat Min Turns Passed 700 | 41 348 311 Spaces Moved 408 | 30 171 207 Core 10 | 1 9 . Treads . | . . . Legs 106 | . 91 15 Wheels 292 | 29 71 192 Hover . | . . . Flight . | . . . Fastest Speed 50 | 50 80 90 Average Speed 126 | 79 147 115 Slowest Speed 260 | 80 260 190 Overloaded Moves . | . . . Propulsion Burnouts . | . . . Robots Hopped . | . . . Potential Cave-ins . | . . . Cave-ins Triggered . | . . . Exploration Rate (%) 28 | 3 31 52 Regions Visited 2 Branch Regions 1 Pre-discovered Areas 2 | . 1 1 Known Exits Taken . | . . . Unknown Exits Taken 2 | 1 1 . Scrap Searched 1 | . . 1 Spaces Dug . | . . . Terrain Destroyed . | . . . Melee . | . . . Projectile . | . . . AOE . | . . . Terrain Rammed . | . . . Walls Destroyed . | . . . Machines Disabled . | . . . Actions | -11 -10 -10 --------- Run | Yrd Mat Min Total 510 | 42 216 252 Wait 3 | . . 3 Move 406 | 29 170 207 Hop . | . . . Pick Up 18 | 6 5 7 Fast Attach 16 | 6 6 4 Attach 2 | . 1 1 Detach . | . . . Swap 4 | . . 4 Drop 9 | . 1 8 Fire 52 | 1 33 18 Melee . | . . . Ram . | . . . Kick . | . . . Crush . | . . . Escape Stasis . | . . . Rewire . | . . . Trap . | . . . Miscellaneous . | . . . Route ------- -11/Scrapyard -10/Materials -10/Mines (discovered 1 exit: [*Sub]) History --------- Turn | Location | Event 2 | -11/Scrapyard | Met Revision 17 20 | -11/Scrapyard | Discovered new exit (range 16) 42 | -11/Scrapyard | Entered Materials 170 | -10/Materials | Core integrity fell below 50% 199 | -10/Materials | Lost 6 parts (1p2n3w) 346 | -10/Materials | Discovered new exit (range 10) 390 | -10/Materials | Entered Mines 434 | -10/Mines | Found DCF Scrap (13 items) 455 | -10/Mines | Learned location of Recycling (-8) 523 | -10/Mines | Core integrity fell below 20% 555 | -10/Mines | Discovered new exit (range 9) 600 | -10/Mines | A weapon hastily lodged in a ceiling crevice suddenly fell to the ground 683 | -10/Mines | Met a Derelict who couldn't figure out how to use a Trap Extractor 701 | -10/Mines | Destroyed by Explosive Trap Last Messages --------------- 00622_ K-01 Serf collects debris. 00622_ R-06 Scavenger collects Aluminum Leg. 00631_ K-01 Serf collects debris. 00682_ Connecting with SHOP.Sys... 00682_ Current location identified: Mines >>Open Door Sealed Doors opened. 00683_ X6-EV2(g): "So I found this thing but I have no idea how to use it. And who the hell trapped this place to begin with?!" 00683_ X6-EV2(g): "I give up! Here you try, I'm outta here before something nasty happens..." 00683_ Tosses Imp. Trap Extractor to the ground. 00691_ Dropped Ion Engine. 00692_ Acquired Imp. Trap Extractor. 00694_ Acquired Hvy. Flail. 00696_ Acquired Pulse Rifle. 00698_ Acquired EM Pulse Cannon. 00700_ Acquired Cesium-ion Thruster. 00701_ Triggered Explosive Trap. 00701_ An explosion rips through the floor. Map ----- +----------------------------------------------------+ | | | | | | | | | | | | | | | | | | | | | | | | | | | | | | | | | | | ??????????????????????????????????????????????? | | ???????????????????????????###????????????????? | | ??????????????????????????# ##???????????????? | | ???????????????????####### #########???????? | | ??????????????????##""## ??????? | | ??????????????????#"!! # ????????? | | ??????????????????#"! * #????????????? | | ??????????????????#" ^^ #?????????????? | | ??????????????????#" @#X ###?????????????? | | ??????????????????##""## ##???????????????? | | ???????????????????#### ##???????????????? | | ??????????????????????# #???????????????? | | ??????????????????????## ##??????????????? | | ???????????????????????## ##?????????????? | | ????????????????????????## #?????????????? | | ?????????????????????????# #?????????????? | | ?????????????????????????# ##????????????? | | ?????????????????????????## #????????????? | | ??????????????????????????## #????????????? | | ???????????????????????????## #????????????? | | ????????????????????????????# ##????????????? | | ????????????????????????????# ##?????????????? | | ?????????????????????######## #?????????###### | | ???????????????# #???????## # | | ?????????????????????### #### ####????# | | ???????????????????????????## #????# | | ??????????????????????????## #????# ?? | | ?????????????????????????## ##???# #??? | | ?????????????????????????# ##### #???# | | ?????????????????????????# #???# | | ????????????????????????# #??## | | ???????????????????????# ## #??# | | ??????????????????????# #### #### | +----------------------------------------------------+ Best States ------------- Heat Dissipation 25 Energy Generation 10 Energy Capacity 250 Matter Stores 300 Matter Capacity 300 Sight Range 16 Terrain Scan Density 10 Power Shielding 33 Evasion (%) 44 Recoil Reduction 1 Item Schematics ----------------- None Robot Schematics ------------------ None Fabricated ------------ Nothing Repaired ---------- Nothing Studied --------- None Alien Tech Used ----------------- None Achievements -------------- None Challenges ------------ None Game ------ Seed ThermoelectricWarpRail Manual? 0 Play Time 00:09:56 Cumulative 66.1 hours Start 2026.08.14 @ 15:38:36 End 2026.08.14 @ 15:46:07 Sessions 1 Manual Loads 0 Difficulty Rogue Special Mode None Game No. 63 Rogue 61 Adventurer 2 Explorer 0 Win Type - Total 0 Types 0/0/0/0/0/0/0/0/0/0 Lore% 40 Gallery% 32 Achievement% 28 Wizard Run 0 Options --------- Layout 0 ASCII 0 Keyboard 0 Movement Mouse Keybinds 0 Fullscreen 2 Font 24/Smallcaps Map View 76x50 Zoom Use 0% Tactical HUD 1 Map Filters NONE Filters NONE Steam 1 RUN: 29e972c2-8311-4e72-93ae-fa9de0b55c7c